fUST/lending_fUST_20251022
["ID","MTS","AMOUNT","RATE_DAILY","PERIOD"]
[392023356,1761106253999,-526.382377,0.00034129,30]
[392023357,1761106254012,-281.036995,0.00034129,30]
[392023358,1761106254021,-158.97718662,0.00034137,30]
[392023359,1761106254031,-500.0,0.00034147,30]
[392023360,1761106254040,-966.45,0.00034162,7]
[392023361,1761106254050,-885.9,0.00034179,60]
[392023362,1761106254059,-1957.97539759,0.00034224,2]
[392023363,1761106254069,-7000.0,0.00034246,2]
[392023364,1761106254079,-7000.0,0.00034246,2]
[392023365,1761106254092,-7000.0,0.00034246,2]
[392023366,1761106254102,-7000.0,0.00034246,2]
[392023367,1761106254111,-4875.83281016,0.00034246,2]
[392023368,1761106254120,-2000.03,0.00034246,7]
[392023369,1761106254130,-1815.56,0.00034246,7]
[392023370,1761106254139,-200.0,0.00034246,7]
[392023371,1761106254149,-403.89839462,0.00034246,2]
[392023372,1761106254159,-500.0,0.00034246,7]
[392023373,1761106254168,-873.36,0.00034246,7]
[392023374,1761106254178,-3385.8,0.00034246,2]
[392023375,1761106254187,-151.0,0.00034246,30]
[392023376,1761106254196,-162.76498,0.00034246,30]
[392023377,1761106254205,-798.61,0.00034246,7]
[392023378,1761106254215,-698.92,0.00034246,7]
[392023379,1761106254225,-1719.71,0.00034246,7]
[392023380,1761106254234,-500.0,0.00034246,7]
[392023381,1761106254243,-2907.85,0.00034246,2]
[392023382,1761106254252,-572.41,0.00034246,7]
[392023383,1761106254262,-519.88438731,0.00034246,7]
[392023384,1761106254272,-500.0,0.00034246,7]
[392023385,1761106254281,-761.94,0.00034246,7]
[392023386,1761106254291,-720.41,0.00034246,7]
[392023387,1761106254300,-500.0,0.00034246,7]
[392023388,1761106254309,-2999.0,0.00034246,120]
[392023389,1761106254318,-1744.14,0.00034246,3]
[392023390,1761106254327,-500.0,0.00034246,7]
[392023391,1761106254336,-500.0,0.00034246,7]
[392023392,1761106254346,-500.0,0.00034246,7]
[392023393,1761106254355,-739.66,0.00034246,2]
[392023394,1761106254364,-6995.6903457,0.00034258,2]
[392023395,1761106254374,-526.382377,0.00034258,30]
[392023396,1761106254383,-281.036995,0.00034258,30]
[392023397,1761106254393,-163.7083507,0.00034279,2]
[392023398,1761106254402,-885.9,0.00034279,60]
[392023399,1761106254412,-2692.54,0.000343,7]
[392023400,1761106254421,-1498.4275879,0.00034316,2]
[392023401,1761106254430,-526.382377,0.00034355,7]
[392023402,1761106254439,-281.036995,0.00034355,7]
[392023403,1761106254448,-500.0,0.00034377,30]
[392023404,1761106254457,-500.0,0.00034377,30]
[392023405,1761106254466,-500.0,0.00034377,30]
[392023406,1761106254475,-500.0,0.00034377,30]
[392023407,1761106254484,-500.0,0.00034377,30]
[392023408,1761106254494,-500.0,0.00034377,30]
[392023409,1761106254503,-554.22891933,0.00034377,30]
[392023410,1761106254512,-885.9,0.00034379,60]
[392023411,1761106254521,-526.382377,0.00034388,30]
[392023412,1761106254531,-281.036995,0.00034388,30]
[392023413,1761106254540,-158.97718662,0.00034438,30]
[392023414,1761106254549,-161.452764,0.00034476,5]
[392023415,1761106254559,-526.382377,0.00034476,5]
[392023416,1761106254568,-281.036995,0.00034476,5]
[392023417,1761106254578,-885.9,0.00034479,60]
[392023418,1761106254587,-2084.32186514,0.000345,30]
[392023419,1761106254596,-521.48,0.000345,30]
[392023420,1761106254605,-1593.0,0.000345,30]
[392023421,1761106254614,-526.382377,0.00034517,30]
[392023422,1761106254623,-161.452764,0.00034517,30]
[392023423,1761106254633,-281.036995,0.00034517,30]
[392023424,1761106254642,-2000.03,0.0003452,7]
[392023425,1761106254651,-1815.56,0.0003452,7]
[392023426,1761106254660,-201.20640799,0.0003452,7]
[392023427,1761106254669,-500.0,0.0003452,7]
[392023428,1761106254678,-873.36,0.0003452,7]
[392023429,1761106254687,-3385.8,0.0003452,2]
[392023430,1761106254697,-798.61,0.0003452,7]
[392023431,1761106254706,-698.92,0.0003452,7]
[392023432,1761106254715,-1719.71,0.0003452,7]
[392023433,1761106254724,-500.0,0.0003452,7]
[392023434,1761106254733,-2907.85,0.0003452,2]
[392023435,1761106254741,-572.41,0.0003452,7]
[392023436,1761106254750,-500.0,0.0003452,7]
[392023437,1761106254759,-761.94,0.0003452,7]
[392023438,1761106254768,-720.41,0.0003452,7]
[392023439,1761106254777,-500.0,0.0003452,7]
[392023440,1761106254786,-1744.14,0.0003452,3]
[392023441,1761106254795,-500.0,0.0003452,7]
[392023442,1761106254804,-500.0,0.0003452,7]
[392023443,1761106254813,-500.0,0.0003452,7]
[392023444,1761106254823,-739.66,0.0003452,2]
[392023445,1761106254831,-176.987836,0.00034537,30]
[392023446,1761106254840,-769.6992341,0.00034537,30]
[392023447,1761106254850,-885.9,0.00034579,60]
[392023448,1761106254859,-2847.75,0.000346,14]
[392023449,1761106254869,-593308.41923382,0.0003465,3]
[392023450,1761106254878,-379747.42629068,0.00034675,5]
[392023451,1761106254888,-885.9,0.00034679,60]
[392023452,1761106254897,-500.0,0.00034695,30]
[392023453,1761106254907,-1220.1984397,0.00034707,2]
[392023454,1761106254916,-158.97718662,0.00034712,30]
[392023455,1761106254926,-900.0,0.0003476,7]
[392023456,1761106254935,-885.9,0.00034779,60]
[392023457,1761106254944,-2000.03,0.00034794,7]
[392023458,1761106254954,-1815.56,0.00034794,7]
[392023459,1761106254964,-500.0,0.00034794,7]
[392023460,1761106254973,-873.36,0.00034794,7]
[392023461,1761106254983,-3385.8,0.00034794,2]
[392023462,1761106254992,-798.61,0.00034794,7]
[392023463,1761106255002,-698.92,0.00034794,7]
[392023464,1761106255015,-1719.71,0.00034794,7]
[392023465,1761106255025,-500.0,0.00034794,7]
[392023466,1761106255034,-2907.85,0.00034794,2]
[392023467,1761106255043,-572.41,0.00034794,7]
[392023468,1761106255054,-500.0,0.00034794,7]
[392023469,1761106255162,-761.94,0.00034794,7]
[392023470,1761106255173,-720.41,0.00034794,7]
[392023471,1761106255183,-214.9295836,0.00034794,7]
[392023472,1761106255192,-1744.14,0.00034794,3]
[392023473,1761106255202,-303.76715868,0.00034794,7]
[392023474,1761106255211,-500.0,0.00034794,7]
[392023475,1761106255220,-500.0,0.00034794,7]
[392023476,1761106255230,-739.66,0.00034794,2]
[392023477,1761106255239,-553431.46696594,0.00034795,4]
[392023478,1761106255248,-1500.0,0.00034795,28]
[392023479,1761106255258,-1500.0,0.00034795,28]
[392023480,1761106255268,-1500.0,0.00034795,28]
[392023481,1761106255277,-1500.0,0.00034795,28]
[392023482,1761106255287,-1500.0,0.00034795,28]
[392023483,1761106255296,-1500.0,0.00034795,28]
[392023484,1761106255305,-916.474784,0.00034795,28]
[392023485,1761106255314,-200.0,0.000348,120]
[392023486,1761106255323,-160.0,0.000348,90]
[392023487,1761106255333,-207.75,0.000348,60]
[392023488,1761106255342,-1003.123706,0.000348,16]
[392023489,1761106255351,-150.0,0.000348,2]
[392023490,1761106255360,-28558.92187319,0.0003482,90]
[392023491,1761106255369,-204.76,0.00034861,30]
[392023492,1761106255378,-1578.88628513,0.0003487,2]
[392023493,1761106255387,-500.0,0.0003487,10]
[392023494,1761106255396,-500.0,0.0003487,30]
[392023495,1761106255405,-503.8541256,0.0003487,10]
[392023496,1761106255414,-152.06151073,0.00034871,120]
[392023497,1761106255423,-156.23380579,0.00034872,7]
[392023498,1761106255432,-277.0,0.00034875,60]
[392023499,1761106255441,-418.9,0.00034875,60]
[392023500,1761106255451,-818.59963613,0.00034876,2]
[392023501,1761106255460,-500.0,0.00034876,30]
[392023502,1761106255469,-151.0,0.00034877,60]
[392023503,1761106255477,-885.97177661,0.00034879,60]
[392023504,1761106255487,-158.47974089,0.000349,30]
[392023505,1761106255495,-159.0,0.000349,33]
[392023506,1761106255505,-2012.81,0.000349,30]
[392023507,1761106255514,-300.0,0.000349,23]
[392023508,1761106255523,-300.0,0.000349,23]
[392023509,1761106255532,-300.0,0.000349,23]
[392023510,1761106255541,-300.0,0.000349,23]
[392023511,1761106255550,-300.0,0.000349,23]
[392023512,1761106255559,-762.0,0.000349,2]
[392023513,1761106255568,-250.0,0.000349,10]
[392023514,1761106255577,-152.04,0.00034907,60]
[392023515,1761106255586,-2999.0,0.00034931,120]
[392023516,1761106255596,-2005.58338126,0.00034943,120]
[392023517,1761106255605,-25581.01311172,0.00034946,30]
[392023518,1761106255615,-5000.0,0.0003495,30]
[392023519,1761106255624,-10000.0,0.00034958,30]
[392023520,1761106255633,-900.0,0.0003496,3]
[392023521,1761106255643,-2000.0,0.0003496,30]
[392023522,1761106255652,-5396.79646624,0.00034961,31]
[392023523,1761106255661,-87748.6285259,0.00034967,30]
[392023524,1761106255670,-160.62,0.00034968,120]
[392023525,1761106255680,-257481.03304877,0.0003497,20]
[392023526,1761106255781,-1877.08369585,0.0003497,20]
[392023527,1761106255792,-1131687.75085583,0.0003497,20]
[392023528,1761106255832,-184.24655123,0.00030136,7]
[392023529,1761106255841,-400.42312284,0.0003497,20]
[392023530,1761106255875,196.0,0.000157,2]
[392023531,1761106255904,196.0,0.00015809,2]
[392023532,1761106255930,196.0,0.00015918,2]
[392023533,1761106255957,196.0,0.00016027,2]
[392023534,1761106255984,196.0,0.00016136,2]
[392023535,1761106256017,196.0,0.00016245,2]
[392023536,1761106256047,196.0,0.00016355,2]
[392023537,1761106256074,196.0,0.00016464,2]
[392023538,1761106256106,196.0,0.00016573,2]
[392023539,1761106256134,196.0,0.00016682,2]
[392023540,1761106256162,196.0,0.00016791,2]
[392023541,1761106256192,196.0,0.000169,2]
[392023542,1761106256219,196.0,0.00017009,2]
[392023543,1761106256245,196.0,0.00017118,2]
[392023544,1761106256280,196.0,0.00017227,2]
[392023545,1761106256307,196.0,0.00017336,2]
[392023546,1761106256335,196.0,0.00017445,2]
[392023547,1761106256361,196.0,0.00017555,2]
[392023548,1761106256388,196.0,0.00017664,2]
[392023549,1761106256415,196.0,0.00017773,2]
[392023550,1761106256440,196.0,0.00017882,2]
[392023551,1761106256470,196.0,0.00017991,2]
[392023552,1761106256496,272.85185601,0.000181,2]
[392023553,1761106259767,5000.0,0.00023938,2]
[392023567,1761106360580,196.0,0.000157,2]
[392023568,1761106360817,196.0,0.000165,2]
[392023569,1761106360843,196.0,0.000173,2]
[392023570,1761106360870,276.0624387,0.000181,2]
[392023571,1761106392018,9135.9475613,0.0002389,2]
[392023572,1761106392040,10000.01,0.0002389,2]
[392023573,1761106392063,10000.01,0.0002389,2]
[392023574,1761106392085,10000.01,0.0002389,2]
[392023575,1761106392114,10000.01,0.0002389,2]
[392023576,1761106392138,10000.01,0.0002389,2]
[392023577,1761106392161,10000.01,0.0002389,2]
[392023578,1761106392183,10000.01,0.0002389,2]
[392023579,1761106392206,10000.01,0.0002389,2]
[392023580,1761106392230,10000.01,0.0002389,2]
[392023581,1761106411129,-875.0,0.00023651,2]
[392023582,1761106412769,-300.0,0.000181,2]
[392023583,1761106412798,-2366.12724498,0.00023651,2]
[392023584,1761106415953,-5049.20113123,0.0002389,2]
[392023585,1761106416043,-10000.01,0.0002389,2]
[392023586,1761106416167,-10000.01,0.0002389,2]
[392023587,1761106416282,-10000.01,0.0002389,2]
[392023588,1761106416397,-10000.01,0.0002389,2]
[392023589,1761106416507,-10000.01,0.0002389,2]
[392023590,1761106416646,-10000.01,0.0002389,2]
[392023591,1761106416792,-10000.01,0.0002389,2]
[392023592,1761106418809,-10000.01,0.0002389,2]
[392023593,1761106419060,-10000.01,0.0002389,2]
[392023594,1761106424824,-5000.0,0.00023651,2]
[392023595,1761106424858,-0.01,0.0002388,10]
[392023596,1761106424956,-648.76,0.0002388,10]
[392023597,1761106424996,-8702.49,0.0002389,2]
[392023598,1761106425079,-10000.01,0.0002389,2]
[392023599,1761106425209,-10000.01,0.0002389,2]
[392023600,1761106425331,-10000.01,0.0002389,2]
[392023601,1761106425439,-10000.01,0.0002389,2]
[392023602,1761106425589,-10000.01,0.0002389,2]
[392023603,1761106427960,-10000.01,0.0002389,2]
[392023604,1761106428187,-10000.01,0.0002389,2]
[392023605,1761106428301,-10000.01,0.0002389,2]
[392023606,1761106433947,-10000.01,0.0002389,2]
[392023607,1761106434042,-10000.01,0.0002389,2]
[392023608,1761106434180,-10000.01,0.0002389,2]
[392023609,1761106434296,-10000.01,0.0002389,2]
[392023610,1761106434528,-10000.01,0.0002389,2]
[392023611,1761106434681,-10000.01,0.0002389,2]
[392023612,1761106434827,-10000.01,0.0002389,2]
[392023613,1761106452118,-5000.0,0.00023414,14]
[392023614,1761106452155,-0.01,0.00023651,14]
[392023615,1761106452354,-4999.99,0.00023651,14]
[392023616,1761106452390,-0.03,0.00023889,2]
[392023617,1761106455055,-299.97,0.00023889,2]
[392023618,1761106455091,-9400.07,0.0002389,2]
[392023619,1761106458069,-2288.04869253,0.0002389,2]
[392023620,1761106458094,-5423.91261494,0.0002389,2]
[392023621,1761106465687,5000.0,0.00023898,2]
[392023622,1761106477317,-300.0,0.000239,2]
[392023623,1761106480615,196.0,0.000157,2]
[392023624,1761106480679,196.0,0.000165,2]
[392023625,1761106480732,196.0,0.000173,2]
[392023626,1761106480794,384.70881523,0.000181,2]
[392023627,1761106486876,159.0,9.6e-07,2]
[392023628,1761106487950,159.0,9.6e-07,2]
[392023629,1761106488116,5000.0,0.000239,2]
[392023630,1761106489117,159.0,9.6e-07,2]
[392023631,1761106490195,159.0,9.6e-07,2]
[392023632,1761106491278,159.0,9.6e-07,2]
[392023633,1761106492367,159.0,9.6e-07,2]
[392023634,1761106493446,159.0,9.6e-07,2]
[392023635,1761106494605,159.0,9.6e-07,2]
[392023636,1761106495753,159.0,9.6e-07,2]
[392023637,1761106510534,1996.30118477,0.000239,2]
[392023638,1761106510558,3003.69881523,0.000239,2]
[392023639,1761106531460,300.0,0.000137,2]
[392023640,1761106532936,5000.0,0.000239,2]
[392023641,1761106557034,1696.31118477,0.000239,2]
[392023642,1761106557056,3303.68881523,0.000239,2]
[392023643,1761106579474,5000.0,0.000239,2]
[392023644,1761106602596,1696.32118477,0.000239,2]
[392023645,1761106602620,3303.67881523,0.000239,2]
[392023648,1761106626338,5000.0,0.000239,2]
[392023658,1761106648719,1696.33118477,0.000239,2]
[392023659,1761106648742,3303.66881523,0.000239,2]
[392023660,1761106670906,5000.0,0.000239,2]
[392023661,1761106694135,1696.34118477,0.000239,2]
[392023662,1761106694158,3303.65881523,0.000239,2]
[392023663,1761106716404,5000.0,0.000239,2]
[392023664,1761106720649,196.0,0.000157,2]
[392023665,1761106720711,196.0,0.000161,2]
[392023666,1761106720774,196.0,0.000165,2]
[392023667,1761106720859,196.0,0.000169,2]
[392023668,1761106720927,196.0,0.000173,2]
[392023669,1761106720984,196.0,0.000177,2]
[392023670,1761106721047,255.70713212,0.000181,2]
[392023671,1761106724197,264.64405265,0.000239,2]
[392023672,1761106724221,1494.22870237,0.000239,2]
[392023673,1761106740743,5000.0,0.000239,2]
[392023674,1761106760323,1058.70039989,0.00023781,12]
[392023675,1761106763489,2447.08089774,0.000239,2]
[392023676,1761106763515,2552.91910226,0.000239,2]
[392023677,1761106786289,5000.0,0.000239,2]
[392023678,1761106808757,2447.09089774,0.000239,2]
[392023679,1761106808780,2552.90910226,0.000239,2]
[392023680,1761106824875,463.84,0.00034945,30]
[392023681,1761106831687,5000.0,0.000239,2]
[392023682,1761106840774,196.0,0.00016,2]
[392023683,1761106840839,196.0,0.00016131,2]
[392023684,1761106840911,196.0,0.00016263,2]
[392023685,1761106840967,196.0,0.00016394,2]
[392023686,1761106841019,196.0,0.00016525,2]
[392023687,1761106841077,196.0,0.00016656,2]
[392023688,1761106841139,196.0,0.00016788,2]
[392023689,1761106841195,196.0,0.00016919,2]
[392023690,1761106841264,196.0,0.0001705,2]
[392023691,1761106841325,196.0,0.00017181,2]
[392023692,1761106841390,196.0,0.00017313,2]
[392023693,1761106841441,196.0,0.00017444,2]
[392023694,1761106841497,95.10089774,0.00017575,2]
[392023695,1761106841524,100.89910226,0.00017575,2]
[392023696,1761106841571,196.0,0.00017706,2]
[392023697,1761106841640,196.0,0.00017838,2]
[392023698,1761106841704,196.0,0.00017969,2]
[392023699,1761106841775,252.22229375,0.000181,2]
[392023700,1761106854180,5000.0,0.000239,2]
[392023701,1761106866466,627.17,0.00019083,2]
[392023702,1761106866891,1254.34,0.00019992,2]
[392023703,1761106867290,1881.51,0.00020901,2]
[392023704,1761106867687,295.86860399,0.0002181,2]
[392023705,1761106867711,2212.81139601,0.0002181,2]
[392023706,1761106868222,3135.85,0.00022718,2]
[392023707,1761106868658,3763.01,0.00023627,2]
[392023708,1761106876486,888.33860399,0.00023853,2]
[392023709,1761106876510,4111.66139601,0.00023853,2]
[392023716,1761106899152,5000.0,0.00023853,2]
[392023717,1761106921865,888.34860399,0.00023853,2]
[392023718,1761106921888,4111.65139601,0.00023853,2]
[392023719,1761106944834,5000.0,0.00023853,2]
[392023720,1761106944870,459.54,0.00019088,2]
[392023721,1761106945292,428.81860399,0.00019997,2]
[392023722,1761106945318,490.27139601,0.00019997,2]
[392023723,1761106945526,183.0,0.00024313,120]
[392023724,1761106945722,1378.63,0.00020906,2]
[392023725,1761106946175,1838.18,0.00021815,2]
[392023726,1761106946575,2297.72,0.00022724,2]
[392023727,1761106946782,183.0,0.00025529,120]
[392023728,1761106947012,2757.26,0.00023633,2]
[392023729,1761106948051,183.0,0.00026806,120]
[392023730,1761106967232,1237.94860399,0.00023853,2]
[392023731,1761106967255,3762.05139601,0.00023853,2]
[392023732,1761106989600,5000.0,0.00023853,2]
[392023733,1761107011902,1237.95860399,0.00023853,2]
[392023734,1761107011925,3762.04139601,0.00023853,2]
[392023735,1761107034368,5000.0,0.00023934,2]
[392023736,1761107057313,5000.0,0.00023934,2]
[392023737,1761107079629,0.01,0.00023934,2]
[392023741,1761107107433,338.63,0.00019131,2]
[392023742,1761107107851,677.26,0.00020042,2]
[392023743,1761107108268,1015.89,0.00020953,2]
[392023744,1761107108666,1354.52,0.00021864,2]
[392023745,1761107109073,1693.15,0.00022775,2]
[392023746,1761107109493,2031.78,0.00023686,2]
[392023756,1761107185769,275.71,0.00019213,2]
[392023757,1761107186190,551.43,0.00020128,2]
[392023758,1761107186587,827.14,0.00021043,2]
[392023759,1761107186990,1102.85,0.00021958,2]
[392023760,1761107187395,131.65,0.00022872,2]
[392023761,1761107187420,1246.92,0.00022872,2]
[392023762,1761107187796,1654.28,0.00023787,2]
[392023763,1761107194414,300.0,0.000237,2]
[392023764,1761107232771,160.0,0.000238,2]
[392023765,1761107243330,160.0,0.000238,2]
[392023766,1761107251727,300.0,0.000237,2]
[392023767,1761107264157,208.25,0.00019157,2]
[392023768,1761107264637,416.51,0.00020069,2]
[392023769,1761107265089,624.76,0.00020981,2]
[392023770,1761107265495,833.01,0.00021893,2]
[392023771,1761107265908,1041.27,0.00022806,2]
[392023772,1761107266320,1249.52,0.00023718,2]
[392023773,1761107268967,1805.49,0.00018,2]
[392023774,1761107268994,10000.01,0.00018,2]
[392023775,1761107269020,10000.01,0.00018,2]
[392023776,1761107269049,10000.01,0.00018,2]
[392023777,1761107269076,10000.01,0.00018,2]
[392023778,1761107269101,10000.01,0.00018,2]
[392023779,1761107269125,10000.01,0.00018,2]
[392023780,1761107269148,10000.01,0.00018,2]
[392023781,1761107269172,5148.86533651,0.00018,2]
[392023782,1761107272178,4851.14466349,0.00023838,2]
[392023783,1761107273217,5131.76796127,0.00018,2]
[392023785,1761107285708,1194.0359751,0.000237,30]
[392023786,1761107288051,-148.85533651,0.00023838,2]
[392023787,1761107294545,5000.0,0.00023838,2]
[392023788,1761107302420,4702.29932698,0.00023838,2]
[392023789,1761107302446,297.70067302,0.00023838,2]
[392023790,1761107303178,161.0,0.000238,2]
[392023791,1761107304151,161.0,0.000238,2]
[392023792,1761107310463,5000.0,0.00023838,2]
[392023793,1761107311283,300.0,0.000237,2]
[392023794,1761107316262,4080.30932698,0.00019,2]
[392023795,1761107316285,10000.01,0.00019,2]
[392023796,1761107316307,10000.01,0.00019,2]
[392023797,1761107316329,5449.39168497,0.00019,2]
[392023798,1761107316997,588.85082911,0.000149,2]
[392023799,1761107317109,1000.0,0.0001,2]
[392023800,1761107317838,2961.76748592,0.00018,2]
[392023801,1761107317860,1396.06418561,0.00018,2]
[392023802,1761107318289,5000.0,0.00023838,2]
[392023803,1761107320479,3603.94581439,0.0002,2]
[392023804,1761107320500,10000.01,0.0002,2]
[392023805,1761107320521,2071.20178469,0.0002,2]
[392023806,1761107320657,196.0,0.000157,2]
[392023807,1761107320738,196.0,0.00015741,2]
[392023808,1761107320812,196.0,0.00015783,2]
[392023809,1761107320878,196.0,0.00015824,2]
[392023810,1761107320945,196.0,0.00015866,2]
[392023811,1761107321020,196.0,0.00015907,2]
[392023812,1761107321079,196.0,0.00015948,2]
[392023813,1761107321145,196.0,0.0001599,2]
[392023814,1761107321213,196.0,0.00016031,2]
[392023815,1761107321279,196.0,0.00016072,2]
[392023816,1761107321347,196.0,0.00016114,2]
[392023817,1761107321421,196.0,0.00016155,2]
[392023818,1761107321481,196.0,0.00016197,2]
[392023819,1761107321546,196.0,0.00016238,2]
[392023820,1761107321615,196.0,0.00016279,2]
[392023821,1761107321681,196.0,0.00016321,2]
[392023822,1761107321754,196.0,0.00016362,2]
[392023823,1761107322212,196.0,0.00016403,2]
[392023824,1761107322285,196.0,0.00016445,2]
[392023825,1761107322352,196.0,0.00016486,2]
[392023826,1761107322420,196.0,0.00016528,2]
[392023829,1761107322494,196.0,0.00016569,2]
[392023834,1761107322576,196.0,0.0001661,2]
[392023838,1761107322638,196.0,0.00016652,2]
[392023842,1761107322705,196.0,0.00016693,2]
[392023843,1761107322778,196.0,0.00016734,2]
[392023844,1761107322852,196.0,0.00016776,2]
[392023845,1761107322913,196.0,0.00016817,2]
[392023846,1761107322993,196.0,0.00016859,2]
[392023847,1761107323050,196.0,0.000169,2]
[392023848,1761107323121,196.0,0.00016941,2]
[392023849,1761107323189,196.0,0.00016983,2]
[392023850,1761107323268,196.0,0.00017024,2]
[392023851,1761107323330,196.0,0.00017066,2]
[392023852,1761107323393,1000.0,0.000235,2]
[392023853,1761107323421,196.0,0.00017107,2]
[392023854,1761107323472,68.80821531,0.00017148,2]
[392023855,1761107323494,127.19178469,0.00017148,2]
[392023856,1761107323535,196.0,0.0001719,2]
[392023857,1761107323601,196.0,0.00017231,2]
[392023858,1761107323661,196.0,0.00017272,2]
[392023859,1761107323724,196.0,0.00017314,2]
[392023860,1761107323951,196.0,0.00017355,2]
[392023861,1761107324027,196.0,0.00017397,2]
[392023862,1761107324119,196.0,0.00017438,2]
[392023863,1761107324182,196.0,0.00017479,2]
[392023864,1761107324245,196.0,0.00017521,2]
[392023865,1761107324318,196.0,0.00017562,2]
[392023866,1761107324375,196.0,0.00017603,2]
[392023867,1761107324436,196.0,0.00017645,2]
[392023868,1761107324496,196.0,0.00017686,2]
[392023869,1761107324559,196.0,0.00017728,2]
[392023870,1761107324630,196.0,0.00017769,2]
[392023871,1761107324688,196.0,0.0001781,2]
[392023872,1761107324758,196.0,0.00017852,2]
[392023873,1761107324824,196.0,0.00017893,2]
[392023874,1761107324883,196.0,0.00017934,2]
[392023875,1761107324944,196.0,0.00017976,2]
[392023876,1761107325010,196.0,0.00018017,2]
[392023877,1761107325072,196.0,0.00018059,2]
[392023878,1761107325139,388.92957157,0.000181,2]
[392023879,1761107326429,5000.0,0.00023838,2]
[392023880,1761107326512,171.88864374,0.0002,2]
[392023881,1761107326534,3898.22629107,0.0002,2]
[392023882,1761107326635,6101.78370893,0.00022,2]
[392023883,1761107326655,3443.17521907,0.00022,2]
[392023884,1761107334210,5000.0,0.00023838,2]
[392023885,1761107341947,544.78,0.00019348,2]
[392023886,1761107342351,1012.05478093,0.00020269,2]
[392023887,1761107342375,77.51521907,0.00020269,2]
[392023888,1761107342560,5000.0,0.00023838,2]
[392023889,1761107342812,1634.35,0.0002119,2]
[392023890,1761107343254,2179.13,0.00022111,2]
[392023891,1761107343665,1109.01478093,0.00023033,2]
[392023892,1761107343689,1614.90521907,0.00023033,2]
[392023893,1761107350270,5000.0,0.00023838,2]
[392023894,1761107358362,2513.15341523,0.00023838,2]
[392023895,1761107366459,2486.85658477,0.00023838,2]
[392023896,1761107366482,2513.14341523,0.00023838,2]
[392023897,1761107374519,395.20118848,0.000238,2]
[392023898,1761107375068,5000.0,0.00023838,2]
[392023899,1761107390380,2091.66539629,0.00023838,2]
[392023900,1761107390403,2908.33460371,0.00023838,2]
[392023901,1761107398432,579.4436219,0.00023838,2]
[392023902,1761107410933,160.0,0.000301,120]
[392023903,1761107414285,5000.0,0.00023838,2]
[392023904,1761107418381,160.0,0.000301,120]
[392023905,1761107422934,450.32,0.00019439,2]
[392023906,1761107423362,900.65,0.00020364,2]
[392023907,1761107423781,161.26177439,0.0002129,2]
[392023908,1761107423809,1189.70822561,0.0002129,2]
[392023909,1761107424241,1801.3,0.00022216,2]
[392023910,1761107424647,2251.62,0.00023141,2]